fUST/lending_fUST_20240919
["ID","MTS","AMOUNT","RATE_DAILY","PERIOD"]
[338474192,1726683043604,-151.0,0.00019127,2]
[338474193,1726683043614,-151.0,0.00019127,2]
[338474195,1726683043623,-796.740396,0.00019127,2]
[338474197,1726683043632,-796.740396,0.00019127,2]
[338474198,1726683043641,-218.29889,0.00019127,2]
[338474200,1726683043650,-392.440812,0.00019127,2]
[338474201,1726683043660,-392.440812,0.00019127,2]
[338474202,1726683043669,-392.440812,0.00019127,2]
[338474203,1726683043678,-392.440812,0.00019127,2]
[338474204,1726683043687,-998.649332,0.00019127,2]
[338474205,1726683043697,-998.649332,0.00019127,2]
[338474206,1726683043707,-474.210655,0.00019127,2]
[338474207,1726683043716,-474.210655,0.00019127,2]
[338474208,1726683043726,-1011.496981,0.00019127,2]
[338474209,1726683043735,-1011.496981,0.00019127,2]
[338474210,1726683043744,-1011.496981,0.00019127,2]
[338474211,1726683043754,-1011.496981,0.00019127,2]
[338474212,1726683043763,-365.552684,0.00019127,2]
[338474213,1726683043772,-1000.0,0.00019127,2]
[338474214,1726683043781,-663.052163,0.00019127,2]
[338474215,1726683043790,-1000.0,0.00019127,2]
[338474216,1726683043799,-500.0,0.00019127,2]
[338474217,1726683043809,-365.552684,0.00019127,2]
[338474218,1726683043825,-663.052163,0.00019127,2]
[338474219,1726683043836,-1043.142396,0.00019127,2]
[338474220,1726683043846,-151.0,0.00019127,2]
[338474221,1726683043858,-1043.142396,0.00019127,2]
[338474222,1726683043868,-170.277715,0.00019127,2]
[338474223,1726683043878,-340.556859,0.00019127,2]
[338474224,1726683043887,-170.277715,0.00019127,2]
[338474225,1726683043897,-340.556859,0.00019127,2]
[338474226,1726683043907,-575.918829,0.00019127,2]
[338474227,1726683043978,-575.918829,0.00019127,2]
[338474228,1726683043989,-1170.487726,0.00019127,2]
[338474229,1726683044000,-1170.487726,0.00019127,2]
[338474230,1726683044009,-1456.840276,0.00019127,2]
[338474231,1726683044020,-1456.840276,0.00019127,2]
[338474232,1726683044029,-254.424638,0.00019127,2]
[338474233,1726683044040,-254.424638,0.00019127,2]
[338474234,1726683044051,-151.0,0.00019127,2]
[338474235,1726683044062,-151.0,0.00019127,2]
[338474236,1726683044077,-151.0,0.00019127,2]
[338474237,1726683044086,-173.587758,0.00019127,2]
[338474238,1726683044095,-173.587758,0.00019127,2]
[338474239,1726683044105,-151.0,0.00019128,2]
[338474240,1726683044114,-203.592475,0.00019128,2]
[338474241,1726683044124,-151.0,0.00019128,2]
[338474242,1726683044133,-151.0,0.00019128,2]
[338474243,1726683044142,-193.265891,0.00019128,2]
[338474244,1726683044152,-193.265891,0.00019128,2]
[338474245,1726683044162,-151.0,0.00019132,2]
[338474246,1726683044171,-151.0,0.00019132,2]
[338474247,1726683044182,-151.0,0.00019132,2]
[338474248,1726683044192,-193.265891,0.00019132,2]
[338474249,1726683044201,-193.265891,0.00019132,2]
[338474250,1726683044210,-151.0,0.00019136,2]
[338474251,1726683044220,-151.0,0.00019136,2]
[338474252,1726683044229,-151.0,0.00019136,2]
[338474253,1726683044238,-151.0,0.00019136,2]
[338474254,1726683044248,-151.0,0.00019136,2]
[338474255,1726683044257,-151.0,0.00019136,2]
[338474256,1726683044266,-193.265891,0.00019136,2]
[338474257,1726683044277,-193.265891,0.00019136,2]
[338474258,1726683044289,-153.018642,0.00019136,2]
[338474259,1726683044298,-153.018642,0.00019136,2]
[338474260,1726683044309,-151.953278,0.00019136,2]
[338474261,1726683044321,-151.0,0.00019136,2]
[338474262,1726683044330,-151.0,0.00019136,2]
[338474263,1726683044339,-151.0,0.00019136,2]
[338474264,1726683044349,-151.0,0.00019136,2]
[338474265,1726683044359,-156.29469,0.00019136,2]
[338474266,1726683044368,-262.9237419,0.00019136,2]
[338474267,1726683044378,-12064.83262104,0.00019136,2]
[338474268,1726683044387,-153.153796,0.00019136,2]
[338474269,1726683044396,-151.0,0.00019136,2]
[338474270,1726683044408,-151.0,0.00019136,2]
[338474271,1726683044419,-1448.330541,0.00019136,2]
[338474272,1726683044434,-1448.330541,0.00019136,2]
[338474273,1726683044444,-1448.330541,0.00019136,2]
[338474274,1726683044454,-1448.330541,0.00019136,2]
[338474275,1726683044464,-151.0,0.00019136,2]
[338474276,1726683044473,-151.0,0.00019136,2]
[338474277,1726683044483,-186.042164,0.00019136,2]
[338474278,1726683044493,-151.0,0.00019136,2]
[338474279,1726683044504,-151.0,0.00019136,2]
[338474280,1726683044514,-796.740396,0.00019136,2]
[338474281,1726683044523,-796.740396,0.00019136,2]
[338474282,1726683044532,-151.0,0.00019136,2]
[338474283,1726683044542,-151.0,0.00019136,2]
[338474285,1726683044551,-796.740396,0.00019136,2]
[338474286,1726683044560,-796.740396,0.00019136,2]
[338474288,1726683044571,-392.440812,0.00019136,2]
[338474290,1726683044580,-392.440812,0.00019136,2]
[338474292,1726683044589,-392.440812,0.00019136,2]
[338474294,1726683044598,-392.440812,0.00019136,2]
[338474295,1726683044608,-998.649332,0.00019136,2]
[338474297,1726683044618,-998.649332,0.00019136,2]
[338474299,1726683044627,-474.210655,0.00019136,2]
[338474301,1726683044637,-474.210655,0.00019136,2]
[338474303,1726683044646,-1011.496981,0.00019136,2]
[338474304,1726683044656,-1011.496981,0.00019136,2]
[338474305,1726683044665,-1011.496981,0.00019136,2]
[338474306,1726683044675,-1011.496981,0.00019136,2]
[338474307,1726683044685,-365.552684,0.00019136,2]
[338474309,1726683044694,-365.552684,0.00019136,2]
[338474310,1726683044704,-663.052163,0.00019136,2]
[338474311,1726683044714,-663.052163,0.00019136,2]
[338474312,1726683044724,-365.552684,0.00019136,2]
[338474313,1726683044734,-365.552684,0.00019136,2]
[338474314,1726683044744,-663.052163,0.00019136,2]
[338474315,1726683044754,-663.052163,0.00019136,2]
[338474316,1726683044763,-1043.142396,0.00019136,2]
[338474317,1726683044773,-151.0,0.00019136,2]
[338474318,1726683044782,-151.0,0.00019136,2]
[338474319,1726683044792,-1043.142396,0.00019136,2]
[338474321,1726683044802,-170.277715,0.00019136,2]
[338474322,1726683044812,-170.277715,0.00019136,2]
[338474323,1726683044823,-340.556859,0.00019136,2]
[338474324,1726683044833,-340.556859,0.00019136,2]
[338474325,1726683044843,-170.277715,0.00019136,2]
[338474326,1726683044853,-340.556859,0.00019136,2]
[338474327,1726683044863,-170.277715,0.00019136,2]
[338474328,1726683044873,-340.556859,0.00019136,2]
[338474329,1726683044883,-575.918829,0.00019136,2]
[338474330,1726683044893,-575.918829,0.00019136,2]
[338474331,1726683044902,-575.918829,0.00019136,2]
[338474332,1726683044912,-575.918828,0.00019136,2]
[338474333,1726683044922,-1170.487726,0.00019136,2]
[338474334,1726683044932,-1170.487726,0.00019136,2]
[338474335,1726683044942,-1170.487726,0.00019136,2]
[338474336,1726683044952,-1170.487729,0.00019136,2]
[338474337,1726683044962,-1456.840276,0.00019136,2]
[338474338,1726683044972,-1456.840276,0.00019136,2]
[338474339,1726683044982,-1456.840276,0.00019136,2]
[338474340,1726683044994,-1456.840285,0.00019136,2]
[338474341,1726683045004,-254.424638,0.00019136,2]
[338474342,1726683045014,-254.424638,0.00019136,2]
[338474343,1726683045024,-254.424638,0.00019136,2]
[338474344,1726683045035,-254.42464,0.00019136,2]
[338474345,1726683045045,-151.0,0.00019136,2]
[338474346,1726683045055,-151.0,0.00019136,2]
[338474347,1726683045065,-151.0,0.00019136,2]
[338474348,1726683045078,-151.0,0.00019136,2]
[338474349,1726683045088,-151.0,0.00019136,2]
[338474350,1726683045098,-151.0,0.00019136,2]
[338474351,1726683045107,-173.587758,0.00019136,2]
[338474352,1726683045118,-173.587758,0.00019136,2]
[338474353,1726683045127,-173.587758,0.00019136,2]
[338474354,1726683045137,-173.587765,0.00019136,2]
[338474355,1726683045147,-156.390996,0.00019137,2]
[338474356,1726683045158,-151.0,0.00019137,2]
[338474357,1726683045168,-151.0,0.00019137,2]
[338474358,1726683045178,-151.0,0.00019137,2]
[338474359,1726683045187,-151.0,0.00019137,2]
[338474360,1726683045197,-151.0,0.00019137,2]
[338474361,1726683045207,-151.0,0.00019137,2]
[338474362,1726683045217,-151.0,0.00019137,2]
[338474363,1726683045227,-163.799477,0.00019137,2]
[338474364,1726683045236,-500.0,0.00019137,2]
[338474365,1726683045246,-500.0,0.00019137,2]
[338474366,1726683045256,-500.0,0.00019137,2]
[338474367,1726683045266,-500.0,0.00019137,2]
[338474368,1726683045275,-500.0,0.00019137,2]
[338474369,1726683045285,-500.0,0.00019137,2]
[338474370,1726683045294,-501.67129401,0.00019137,2]
[338474372,1726683045304,-151.0,0.00019137,2]
[338474374,1726683045314,-299.314941,0.00019137,2]
[338474376,1726683045331,-151.0,0.00019137,2]
[338474378,1726683045341,-193.265891,0.00019137,2]
[338474380,1726683045351,-193.265891,0.00019137,2]
[338474381,1726683045360,-193.265891,0.00019137,2]
[338474382,1726683045371,-193.265891,0.00019137,2]
[338474383,1726683045381,-193.265891,0.00019137,2]
[338474384,1726683045391,-193.265891,0.00019137,2]
[338474385,1726683045401,-153.018642,0.00019137,2]
[338474386,1726683045411,-153.018642,0.00019137,2]
[338474387,1726683045423,-294.484643,0.00019137,2]
[338474388,1726683045440,-998.649332,0.00019137,2]
[338474389,1726683045452,-998.649332,0.00019137,2]
[338474390,1726683045462,-474.210655,0.00019137,2]
[338474391,1726683045474,-474.210655,0.00019137,2]
[338474392,1726683045485,-1043.142396,0.00019137,2]
[338474393,1726683045496,-1043.142396,0.00019137,2]
[338474394,1726683045507,-151.0,0.00019138,2]
[338474395,1726683045516,-151.0,0.00019138,2]
[338474396,1726683045527,-151.0,0.00019138,2]
[338474397,1726683045538,-151.0,0.00019138,2]
[338474398,1726683045549,-193.265891,0.00019138,2]
[338474399,1726683045560,-193.265886,0.00019138,2]
[338474400,1726683045576,-153.018642,0.00019138,2]
[338474401,1726683045586,-153.018642,0.00019138,2]
[338474402,1726683045595,-174.912994,0.00019138,2]
[338474403,1726683045605,-1448.330541,0.00019138,2]
[338474404,1726683045615,-1448.330541,0.00019138,2]
[338474405,1726683045625,-151.0,0.00019138,2]
[338474406,1726683045635,-151.0,0.00019138,2]
[338474407,1726683045645,-796.740396,0.00019138,2]
[338474408,1726683045655,-151.0,0.00019138,2]
[338474409,1726683045666,-796.740396,0.00019138,2]
[338474410,1726683045678,-392.440812,0.00019138,2]
[338474411,1726683045688,-392.440812,0.00019138,2]
[338474412,1726683045698,-1011.496981,0.00019138,2]
[338474413,1726683045707,-1011.496981,0.00019138,2]
[338474414,1726683045717,-151.0,0.00019138,2]
[338474415,1726683045726,-151.0,0.00019138,2]
[338474416,1726683045736,-151.0,0.00019138,2]
[338474417,1726683045746,-342.0,0.0001914,2]
[338474418,1726683045756,-701.309395,0.00019145,2]
[338474419,1726683045765,-151.0,0.00019146,2]
[338474420,1726683045775,-170.908554,0.00019146,2]
[338474421,1726683045786,-154.795383,0.00019146,2]
[338474422,1726683045796,-151.0,0.00019146,2]
[338474423,1726683045806,-1448.330541,0.00019146,2]
[338474424,1726683045815,-1448.330541,0.00019146,2]
[338474425,1726683045828,-151.0,0.00019146,2]
[338474426,1726683045837,-151.0,0.00019146,2]
[338474427,1726683045848,-796.740396,0.00019146,2]
[338474428,1726683045857,-151.0,0.00019146,2]
[338474429,1726683045868,-796.740396,0.00019146,2]
[338474430,1726683045878,-392.440812,0.00019146,2]
[338474431,1726683045888,-392.440812,0.00019146,2]
[338474432,1726683045899,-998.649332,0.00019146,2]
[338474433,1726683045910,-998.649332,0.00019146,2]
[338474434,1726683045920,-474.210655,0.00019146,2]
[338474435,1726683045931,-474.210655,0.00019146,2]
[338474436,1726683045942,-1011.496981,0.00019146,2]
[338474437,1726683045952,-1011.496981,0.00019146,2]
[338474438,1726683045962,-365.552684,0.00019146,2]
[338474439,1726683045973,-663.052163,0.00019146,2]
[338474440,1726683045983,-365.552684,0.00019146,2]
[338474441,1726683045993,-663.052163,0.00019146,2]
[338474442,1726683046003,-1043.142396,0.00019146,2]
[338474443,1726683046014,-151.0,0.00019146,2]
[338474444,1726683046025,-1043.142396,0.00019146,2]
[338474445,1726683046035,-170.277715,0.00019146,2]
[338474446,1726683046046,-340.556859,0.00019146,2]
[338474447,1726683046057,-170.277715,0.00019146,2]
[338474448,1726683046070,-340.556859,0.00019146,2]
[338474449,1726683046079,-293.074336,0.00019147,2]
[338474450,1726683046089,-154.506811,0.00019147,2]
[338474451,1726683046099,-293.074336,0.00019147,2]
[338474452,1726683046109,-151.0,0.00019147,2]
[338474453,1726683046119,-151.0,0.00019147,2]
[338474454,1726683046129,-151.0,0.00019147,2]
[338474455,1726683046140,-166.640723,0.00019147,2]
[338474456,1726683046150,-13114.1358431,0.0001915,5]
[338474458,1726683046161,-2977.13514684,0.0001915,2]
[338474459,1726683046171,-151.0,0.0001915,2]
[338474462,1726683046181,-151.0,0.0001915,2]
[338474464,1726683046191,-153.018642,0.0001915,2]
[338474465,1726683046200,-153.018642,0.0001915,2]
[338474467,1726683046210,-1448.330541,0.0001915,2]
[338474469,1726683046221,-1448.330541,0.0001915,2]
[338474470,1726683046231,-151.0,0.0001915,2]
[338474471,1726683046241,-151.0,0.0001915,2]
[338474472,1726683046252,-796.740396,0.0001915,2]
[338474473,1726683046263,-151.0,0.0001915,2]
[338474474,1726683046273,-796.740396,0.0001915,2]
[338474475,1726683046283,-392.440812,0.0001915,2]
[338474476,1726683046295,-392.440812,0.0001915,2]
[338474477,1726683046305,-1011.496981,0.0001915,2]
[338474478,1726683046320,-1011.49698,0.0001915,2]
[338474479,1726683046330,-170.277715,0.00019156,2]
[338474480,1726683046340,-170.277718,0.00019156,2]
[338474481,1726683046351,-151.0,0.00019157,2]
[338474482,1726683046363,-151.0,0.00019157,2]
[338474483,1726683046374,-153.018642,0.00019157,2]
[338474484,1726683046384,-153.018642,0.00019157,2]
[338474485,1726683046395,-1448.330541,0.00019157,2]
[338474486,1726683046405,-1448.330547,0.00019157,2]
[338474487,1726683046417,-151.0,0.00019157,2]
[338474488,1726683046431,-151.0,0.00019157,2]
[338474489,1726683046443,-796.740396,0.00019157,2]
[338474490,1726683046455,-151.0,0.00019157,2]
[338474491,1726683046465,-796.740398,0.00019157,2]
[338474492,1726683046477,-392.440812,0.00019157,2]
[338474493,1726683046488,-392.440815,0.00019157,2]
[338474494,1726683046499,-998.649332,0.00019157,2]
[338474495,1726683046509,-998.649332,0.00019157,2]
[338474496,1726683046520,-474.210655,0.00019157,2]
[338474497,1726683046531,-474.210664,0.00019157,2]
[338474498,1726683046541,-365.552684,0.00019157,2]
[338474499,1726683046552,-663.052163,0.00019157,2]
[338474500,1726683046564,-365.552693,0.00019157,2]
[338474501,1726683046583,-663.052167,0.00019157,2]
[338474502,1726683046595,-1043.142396,0.00019157,2]
[338474503,1726683046605,-151.0,0.00019157,2]
[338474504,1726683046617,-1043.142391,0.00019157,2]
[338474505,1726683046630,-340.556859,0.00019157,2]
[338474506,1726683046640,-340.556852,0.00019157,2]
[338474507,1726683046651,-151.0,0.00019157,2]
[338474508,1726683046663,-151.0,0.00019157,2]
[338474509,1726683046673,-244.2808,0.00019159,2]
[338474510,1726683046683,-150.369,0.00019164,2]
[338474511,1726683046695,-150.276,0.00019164,2]
[338474512,1726683046706,-524.0,0.00019164,2]
[338474513,1726683046716,-150.0,0.00019164,2]
[338474514,1726683046729,-1216.0,0.00019164,2]
[338474515,1726683046738,-151.0,0.00019167,2]
[338474516,1726683046748,-293.074336,0.00019167,2]
[338474517,1726683046758,-293.074336,0.00019167,2]
[338474518,1726683046768,-151.0,0.00019167,2]
[338474519,1726683046778,-151.0,0.00019167,2]
[338474520,1726683046789,-151.0,0.00019167,2]
[338474521,1726683046799,-153.018642,0.00019167,2]
[338474522,1726683046808,-153.018642,0.00019167,2]
[338474523,1726683046822,-10000.0,0.00019167,2]
[338474524,1726683046832,-10000.0,0.00019167,2]
[338474525,1726683046842,-10000.0,0.00019167,2]
[338474526,1726683046852,-3323.73657089,0.00019167,2]
[338474527,1726683046862,-294.316791,0.00019167,2]
[338474528,1726683046872,-151.0,0.00019167,2]
[338474529,1726683046882,-151.0,0.00019168,2]
[338474530,1726683046893,-151.0,0.00019168,2]
[338474531,1726683046903,-151.0,0.00019168,2]
[338474532,1726683046913,-151.0,0.00019168,2]
[338474533,1726683046922,-151.0,0.00019168,2]
[338474534,1726683046932,-156.855621,0.00019168,2]
[338474535,1726683046941,-153.018642,0.00019168,2]
[338474536,1726683046951,-153.018642,0.00019168,2]
[338474537,1726683046961,-153.018642,0.00019168,2]
[338474538,1726683046970,-153.018642,0.00019168,2]
[338474539,1726683046980,-153.018642,0.00019168,2]
[338474540,1726683046989,-153.018642,0.00019168,2]
[338474541,1726683046999,-3207.12664174,0.0001917,2]
[338474542,1726683047010,-500.48891412,0.00019173,2]
[338474543,1726683047020,-500.0,0.00019173,2]
[338474544,1726683047030,-159.9027995,0.00019173,2]
[338474545,1726683047041,-500.0,0.00019173,2]
[338474546,1726683047052,-360.07202762,0.00019173,2]
[338474547,1726683047063,-500.35776297,0.00019173,2]
[338474548,1726683047076,-591.02249132,0.00019173,2]
[338474549,1726683047085,-500.0,0.00019173,2]
[338474550,1726683047095,-254.69698023,0.00019173,2]
[338474551,1726683047105,-500.49163467,0.00019173,2]
[338474552,1726683047117,-500.0,0.00019173,2]
[338474553,1726683047127,-500.0,0.00019173,2]
[338474554,1726683047138,-500.0,0.00019173,2]
[338474555,1726683047149,-200.91528279,0.00019173,2]
[338474556,1726683047161,-500.0,0.00019173,2]
[338474557,1726683047171,-522.25634702,0.00019173,2]
[338474558,1726683047181,-500.0,0.00019173,2]
[338474559,1726683047193,-500.38961539,0.00019173,2]
[338474560,1726683047203,-500.0,0.00019173,2]
[338474561,1726683047215,-500.92865773,0.00019173,2]
[338474562,1726683047226,-500.0,0.00019173,2]
[338474563,1726683047236,-500.0,0.00019173,2]
[338474564,1726683047246,-500.0,0.00019173,2]
[338474565,1726683047256,-500.0,0.00019173,2]
[338474566,1726683047266,-160.04022025,0.00019173,2]
[338474567,1726683047275,-500.0,0.00019173,2]
[338474569,1726683047285,-500.0,0.00019173,2]
[338474570,1726683047294,-500.0,0.00019173,2]
[338474572,1726683047304,-500.39214651,0.00019173,2]
[338474574,1726683047314,-513.32263156,0.00019173,2]
[338474576,1726683047327,-160.11335754,0.00019173,2]
[338474577,1726683047339,-500.0,0.00019173,2]
[338474578,1726683047351,-500.0,0.00019173,2]
[338474579,1726683047361,-151.0,0.00019173,2]
[338474580,1726683047372,-293.074336,0.00019177,2]
[338474581,1726683047382,-293.074336,0.00019177,2]
[338474582,1726683047393,-151.0,0.00019177,2]
[338474588,1726683047537,-160.0,0.00019177,2]
[338474591,1726683047565,-160.0,0.00019177,2]
[338474592,1726683047580,-500.0,0.00019178,2]
[338474593,1726683047590,-500.0,0.00019178,2]
[338474594,1726683047599,-1351.31,0.00019178,2]
[338474595,1726683047608,-500.0,0.00019178,2]
[338474596,1726683047617,-500.0,0.00019178,2]
[338474597,1726683047627,-500.0,0.00019178,2]
[338474598,1726683047636,-500.0,0.00019178,2]
[338474599,1726683047645,-2528.93,0.00019178,2]
[338474600,1726683047654,-229.30462457,0.00019178,2]
[338474601,1726683047664,-500.0,0.00019178,2]
[338474602,1726683047673,-500.0,0.00019178,2]
[338474603,1726683047682,-500.0,0.00019178,2]
[338474604,1726683047691,-500.0,0.00019178,2]
[338474605,1726683047700,-500.0,0.00019178,2]
[338474606,1726683047709,-500.0,0.00019178,2]
[338474607,1726683047718,-500.0,0.00019178,2]
[338474608,1726683047728,-500.0,0.00019178,2]
[338474609,1726683047737,-299.137519,0.00019178,2]
[338474610,1726683047747,-500.0,0.00019178,2]
[338474611,1726683047756,-677.5,0.00019178,2]
[338474612,1726683047766,-500.0,0.00019178,2]
[338474613,1726683047775,-500.0,0.00019178,2]
[338474614,1726683047784,-293.074336,0.00019178,2]
[338474615,1726683047808,-293.074336,0.00019178,2]
[338474616,1726683047818,-293.074336,0.00019178,2]
[338474617,1726683047831,-293.074336,0.00019178,2]
[338474618,1726683047842,-293.074336,0.00019178,2]
[338474619,1726683047854,-293.074336,0.00019178,2]
[338474620,1726683047866,-293.074336,0.00019178,2]
[338474621,1726683047878,-293.074336,0.00019178,2]
[338474622,1726683047891,-293.074336,0.00019178,2]
[338474623,1726683047901,-293.074336,0.00019178,2]
[338474624,1726683047913,-293.074336,0.00019178,2]
[338474625,1726683047924,-293.074336,0.00019178,2]
[338474626,1726683047936,-500.0,0.00019178,2]
[338474627,1726683047945,-293.074336,0.00019178,2]
[338474628,1726683047956,-293.074345,0.00019178,2]
[338474629,1726683047966,-151.0,0.00019178,2]
[338474630,1726683047976,-152.108278,0.00019178,2]
[338474631,1726683047987,-500.0,0.00019178,2]
[338474632,1726683047999,-500.0,0.00019178,2]
[338474633,1726683048011,-500.0,0.00019178,2]
[338474634,1726683048021,-500.0,0.00019178,2]
[338474635,1726683048031,-500.0,0.00019178,2]
[338474636,1726683048040,-250.0,0.00019178,2]
[338474637,1726683048051,-500.0,0.00019178,2]
[338474638,1726683048063,-500.0,0.00019178,2]
[338474639,1726683048078,-500.0,0.00019178,2]
[338474640,1726683048088,-1082.32,0.00019178,2]
[338474641,1726683048097,-151.0,0.00019178,2]
[338474642,1726683048106,-500.0,0.00019178,2]
[338474643,1726683048116,-500.0,0.00019178,2]
[338474644,1726683048125,-500.0,0.00019178,2]
[338474645,1726683048135,-500.0,0.00019178,2]
[338474646,1726683048144,-500.0,0.00019178,2]
[338474647,1726683048154,-616.55,0.00019178,2]
[338474648,1726683048165,-153.018642,0.00019178,2]
[338474649,1726683048175,-500.0,0.00019178,2]
[338474650,1726683048184,-500.0,0.00019178,2]
[338474651,1726683048195,-500.0,0.00019178,2]
[338474652,1726683048204,-153.018634,0.00019178,2]
[338474653,1726683048214,-621.18,0.00019178,2]
[338474654,1726683048223,-500.0,0.00019178,2]
[338474655,1726683048233,-500.0,0.00019178,2]
[338474656,1726683048242,-500.0,0.00019178,2]
[338474657,1726683048252,-508.06,0.00019178,2]
[338474658,1726683048261,-500.0,0.00019178,2]
[338474659,1726683048271,-500.0,0.00019178,2]
[338474660,1726683048281,-500.0,0.00019178,2]
[338474661,1726683048291,-500.0,0.00019178,2]
[338474662,1726683048300,-500.0,0.00019178,2]
[338474663,1726683048310,-500.0,0.00019178,2]
[338474664,1726683048323,-683.38,0.00019178,2]
[338474665,1726683048332,-725.29,0.00019178,2]
[338474666,1726683048341,-500.0,0.00019178,2]
[338474667,1726683048351,-500.0,0.00019178,2]
[338474668,1726683048361,-500.0,0.00019178,2]
[338474669,1726683048370,-500.0,0.00019178,2]
[338474670,1726683048381,-500.0,0.00019178,2]
[338474671,1726683048391,-500.0,0.00019178,2]
[338474672,1726683048400,-1122.48,0.00019178,2]
[338474673,1726683048409,-500.0,0.00019178,2]
[338474674,1726683048419,-513.42,0.00019178,2]
[338474675,1726683048433,-500.0,0.00019178,2]
[338474676,1726683048442,-500.0,0.00019178,2]
[338474678,1726683048452,-530.64,0.00019178,2]
[338474680,1726683048462,-1535.4,0.00019178,2]
[338474682,1726683048472,-500.47117748,0.00019178,2]
[338474683,1726683048481,-1179.45,0.00019178,2]
[338474685,1726683048491,-500.0,0.00019178,2]
[338474687,1726683048502,-500.0,0.00019178,2]
[338474689,1726683048512,-1365.32,0.00019178,2]
[338474691,1726683048521,-600.93,0.00019178,2]
[338474692,1726683048531,-1029.93,0.00019178,2]
[338474693,1726683048541,-646.63566128,0.00019178,2]
[338474694,1726683048551,-500.0,0.00019178,2]
[338474695,1726683048562,-500.0,0.00019178,2]
[338474696,1726683048574,-506.47369279,0.00019178,2]
[338474697,1726683048584,-500.0,0.00019178,2]
[338474698,1726683048593,-894.56,0.00019178,2]
[338474700,1726683048604,-500.0,0.00019178,2]
[338474701,1726683048613,-1830.33,0.00019178,2]
[338474702,1726683048623,-500.0,0.00019178,2]
[338474703,1726683048633,-500.0,0.00019178,2]
[338474704,1726683048643,-500.0,0.00019178,2]
[338474705,1726683048653,-1671.03,0.00019178,2]
[338474706,1726683048663,-500.0,0.00019178,2]
[338474707,1726683048673,-500.0,0.00019178,2]
[338474708,1726683048682,-500.0,0.00019178,2]
[338474709,1726683048693,-1610.3,0.00019178,2]
[338474710,1726683048703,-500.0,0.00019178,2]
[338474711,1726683048712,-1696.49,0.00019178,2]
[338474712,1726683048722,-500.0,0.00019178,2]
[338474713,1726683048732,-500.0,0.00019178,2]
[338474714,1726683048742,-777.28,0.00019178,2]
[338474715,1726683048753,-500.0,0.00019178,2]
[338474716,1726683048763,-500.0,0.00019178,2]
[338474717,1726683048773,-500.0,0.00019178,2]
[338474718,1726683048783,-500.0,0.00019178,2]
[338474719,1726683048792,-1323.16,0.00019178,2]
[338474720,1726683048802,-3248.7,0.00019178,2]
[338474721,1726683048811,-500.0,0.00019178,2]
[338474722,1726683048823,-504.38277641,0.00019178,2]
[338474723,1726683048834,-500.0,0.00019178,2]
[338474724,1726683048844,-500.0,0.00019178,2]
[338474725,1726683048853,-1168.28,0.00019178,2]
[338474726,1726683048863,-509.75,0.00019178,2]
[338474727,1726683048873,-500.0,0.00019178,2]
[338474728,1726683048883,-500.0,0.00019178,2]
[338474729,1726683048893,-500.0,0.00019178,2]
[338474730,1726683048903,-500.0,0.00019178,2]
[338474731,1726683048913,-1812.12,0.00019178,2]
[338474732,1726683048923,-1036.53,0.00019178,2]
[338474733,1726683048933,-910.77,0.00019178,2]
[338474734,1726683048943,-500.0,0.00019178,2]
[338474735,1726683048952,-500.0,0.00019178,2]